fUST/lending_fUST_20251207
["ID","MTS","AMOUNT","RATE_DAILY","PERIOD"]
[396612234,1765071043148,-1192.0142174,0.00010685,2]
[396612236,1765071043157,-165.2272366,0.00010685,2]
[396612239,1765071043166,-596.7461344,0.00010685,2]
[396612241,1765071043175,-596.7461344,0.00010685,2]
[396612244,1765071043184,-596.7461344,0.00010685,2]
[396612246,1765071043194,-596.7461344,0.00010685,2]
[396612248,1765071043203,-596.7461344,0.00010685,2]
[396612250,1765071043212,-1192.8008202,0.00010685,2]
[396612252,1765071043223,-301.9689207,0.00010685,2]
[396612254,1765071043232,-301.9689207,0.00010685,2]
[396612256,1765071043242,-305.1769914,0.00010685,2]
[396612258,1765071043251,-1128.33,0.000107,2]
[396612260,1765071043260,-1128.33,0.000107,2]
[396612262,1765071043270,-500.0,0.00010723,2]
[396612264,1765071043279,-186.5939658,0.00010776,2]
[396612268,1765071043289,-359.65945015,0.000108,2]
[396612270,1765071043299,-1128.33,0.000108,2]
[396612272,1765071043308,-824.11275982,0.00010858,2]
[396612563,1765071046527,-301.9689207,0.00010685,2]
[396612565,1765071046537,-406.98217902,0.00010858,2]
[396612570,1765071046571,-2210.91946395,0.00010858,2]
[396612585,1765071046702,-9858.33239201,0.00010858,2]
[396612587,1765071046711,-500.0,0.0001086,2]
[396612589,1765071046721,-1152.0,0.00010861,2]
[396612591,1765071046730,-2183.95625169,0.00010893,2]
[396612593,1765071046744,-300.0,0.000109,2]
[396612595,1765071046755,-1128.33,0.000109,2]
[396612597,1765071046765,-58.90707139,0.00010905,2]
[396612600,1765071046779,-5402.22381414,0.00010905,2]
[396613622,1765071218188,-313.014,7.271e-05,2]
[396613623,1765071218210,-300.0,7.418e-05,2]
[396613624,1765071218236,-149386.986,7.419e-05,2]
[396613725,1765071879540,2000.0,0.000166,30]
[396613726,1765071879566,2000.0,0.000166,30]
[396613727,1765071879591,2000.0,0.000166,30]
[396613728,1765071879618,2000.0,0.000166,30]
[396613729,1765071879644,2000.0,0.000166,30]
[396613730,1765071975296,8099.0347796,0.00013109,3]
[396613731,1765071978599,318.118082,0.000211,99]
[396613732,1765072064135,479.78,0.0001311,3]
[396613733,1765072124907,306.0,0.000211,99]
[396613734,1765072144132,250.0,0.00013109,3]
[396613763,1765072231577,-250.411,7.271e-05,2]
[396613765,1765072231587,-212.0,7.271e-05,2]
[396613766,1765072231596,-300.0,7.318e-05,2]
[396613767,1765072231605,-142747.32957186,7.319e-05,2]
[396613769,1765072231616,-282.34546992,7.319e-05,2]
[396613773,1765072231681,-17294.66422918,7.319e-05,2]
[396613774,1765072231692,-1027.6,7.319e-05,2]
[396613783,1765072237707,-10792.68180084,7.319e-05,2]
[396613784,1765072237721,-2193.4165003,7.319e-05,2]
[396613785,1765072237762,-600.0,7.319e-05,2]
[396613786,1765072237816,-66572.84547157,7.319e-05,2]
[396613787,1765072237828,-346908.97238749,7.319e-05,2]
[396613788,1765072237839,-4542.958772,7.319e-05,2]
[396613789,1765072237850,-7835.69838531,7.319e-05,2]
[396613790,1765072237861,-11507.66988819,7.319e-05,2]
[396613839,1765072240080,-430.55025904,7.319e-05,2]
[396613846,1765072240135,-4576.01192515,7.319e-05,2]
[396613849,1765072240147,-7794.06037926,7.319e-05,2]
[396614109,1765072242810,-11309.80109592,7.319e-05,2]
[396614436,1765072246103,-2253.49425417,7.319e-05,2]
[396614450,1765072246228,-6021.99999998,7.319e-05,2]
[396614452,1765072246239,-641.0,7.319e-05,2]
[396616325,1765072356864,150.0,6.676e-05,2]
[396616326,1765072357257,150.0,6.994e-05,2]
[396616327,1765072430226,150.0,6.651e-05,2]
[396616328,1765072430715,150.0,6.968e-05,2]
[396616329,1765072501029,150.0,6.636e-05,2]
[396616330,1765072501405,150.0,6.952e-05,2]
[396616331,1765072502412,313.29487227,0.000211,99]
[396616337,1765072570504,150.0,6.654e-05,2]
[396616338,1765072570901,150.0,6.97e-05,2]
[396616339,1765072638569,150.0,6.71e-05,2]
[396616340,1765072703984,6497.21321879,0.0001311,3]
[396616341,1765072705407,150.0,6.709e-05,2]
[396616342,1765072770404,150.0,6.709e-05,2]
[396616344,1765072835087,150.0,6.647e-05,2]
[396616345,1765072899531,150.0,6.715e-05,2]
[396616346,1765072963697,150.0,6.721e-05,2]
[396616347,1765073027922,150.0,6.716e-05,2]
[396616348,1765073092616,150.0,6.72e-05,2]
[396616349,1765073158424,150.0,6.715e-05,2]
[396616350,1765073343227,250.0,0.00013109,3]
[396616378,1765073431775,-210.0,7.029e-05,2]
[396616380,1765073431784,-432.98847681,7.1e-05,2]
[396616399,1765073437933,-3.4338079,7.1e-05,2]
[396616400,1765073437945,-212.14866,7.218e-05,2]
[396616401,1765073437956,-2062.1975321,7.219e-05,2]
[396616402,1765073437968,-1004.18510998,7.219e-05,2]
[396616403,1765073438039,-4517.16837286,7.219e-05,2]
[396616500,1765073440799,-366.39040813,7.219e-05,2]
[396616750,1765073443022,-435.015,7.219e-05,2]
[396617039,1765073445908,-22220.43651384,7.219e-05,2]
[396618837,1765074179022,194.81830794,0.000211,99]
[396618838,1765074179614,194.81830794,0.000211,99]
[396618839,1765074180218,194.81830794,0.000211,99]
[396618840,1765074180613,194.81830794,0.000211,99]
[396618841,1765074181174,194.81830794,0.000211,99]
[396618842,1765074181983,194.81830794,0.000211,99]
[396618843,1765074182425,194.81830794,0.000211,99]
[396618844,1765074228342,80767.84039054,0.0001311,3]
[396618848,1765074462640,250.0,6.848e-05,2]
[396618926,1765074638127,-200.329,7.075e-05,2]
[396618928,1765074638136,-120.46909729,7.075e-05,2]
[396618930,1765074638148,-89.53090271,7.075e-05,2]
[396618932,1765074638157,-427.69383902,7.077e-05,2]
[396618934,1765074638167,-45796.44853063,7.119e-05,2]
[396618936,1765074638178,-100366.62679882,7.119e-05,2]
[396618938,1765074638189,-93406.46660438,7.119e-05,2]
[396618941,1765074638211,-362.75262753,7.119e-05,2]
[396618948,1765074638261,-3201.12021055,7.119e-05,2]
[396619172,1765074640817,-14436.7431375,7.119e-05,2]
[396619423,1765074643231,-604.0,7.119e-05,2]
[396619486,1765074643696,-27444.68438785,7.119e-05,2]
[396619722,1765074646184,-8241.92674159,7.119e-05,2]
[396619724,1765074646195,-600.99999999,7.119e-05,2]
[396623918,1765074705757,160.263,6.977e-05,2]
[396623925,1765075305799,160.263,6.879e-05,2]
[396623936,1765075832333,-707.1027467,7.019e-05,2]
[396623938,1765075832344,-534.64380724,7.019e-05,2]
[396623943,1765075832388,-107640.08385454,7.019e-05,2]
[396623996,1765075838555,-8740.56035643,7.019e-05,2]
[396623999,1765075838569,-611.12857659,7.019e-05,2]
[396624003,1765075838603,-689.99231085,7.019e-05,2]
[396624196,1765075840676,-9156.633293,7.019e-05,2]
[396624199,1765075840687,-4638.2567345,7.019e-05,2]
[396624201,1765075840698,-25849.42175035,7.019e-05,2]
[396624453,1765075843361,-277.61820935,7.019e-05,2]
[396624460,1765075843415,-11874.6777346,7.019e-05,2]
[396624466,1765075843471,-5452.94644623,7.019e-05,2]
[396624469,1765075843483,-23493.2860514,7.019e-05,2]
[396624474,1765075843524,-1036.80428912,7.019e-05,2]
[396624816,1765075846921,-779.9514622,7.019e-05,2]
[396625855,1765075905786,160.264,6.879e-05,2]
[396625856,1765076141515,9269.22,6.919e-05,2]
[396625857,1765076141541,10000.01,6.919e-05,2]
[396625858,1765076141566,10000.01,6.919e-05,2]
[396625859,1765076141591,10000.01,6.919e-05,2]
[396625860,1765076141616,10000.01,6.919e-05,2]
[396625861,1765076141640,10000.01,6.919e-05,2]
[396625862,1765076141665,10000.01,6.919e-05,2]
[396625863,1765076141691,10000.01,6.919e-05,2]
[396625864,1765076141716,10000.01,6.919e-05,2]
[396625865,1765076141742,10000.01,6.919e-05,2]
[396625866,1765076165259,-300.0,6.918e-05,2]
[396625867,1765076192093,500.0,6.918e-05,2]
[396625868,1765076192189,165.99923204,6.918e-05,2]
[396625869,1765076192235,500.0,6.918e-05,2]
[396625870,1765076192399,500.0,6.918e-05,2]
[396625871,1765076192543,500.0,6.918e-05,2]
[396625872,1765076195735,500.0,6.918e-05,2]
[396625873,1765076195792,500.0,6.918e-05,2]
[396625874,1765076195859,500.0,6.918e-05,2]
[396625875,1765076195906,500.0,6.918e-05,2]
[396625876,1765076195948,500.0,6.918e-05,2]
[396625877,1765076195991,500.0,6.918e-05,2]
[396625878,1765076196063,500.0,6.918e-05,2]
[396625879,1765076196127,500.0,6.918e-05,2]
[396625880,1765076196196,500.0,6.918e-05,2]
[396625881,1765076196270,318.95223193,6.918e-05,2]
[396625882,1765076196341,500.0,6.918e-05,2]
[396625883,1765076196407,500.0,6.918e-05,2]
[396625884,1765076196450,500.0,6.918e-05,2]
[396625885,1765076212722,500.0,6.918e-05,2]
[396625886,1765076212788,415.05853603,6.918e-05,2]
[396625887,1765076212816,84.94146397,6.918e-05,2]
[396625888,1765076212847,500.0,6.918e-05,2]
[396625889,1765076212910,500.0,6.918e-05,2]
[396625890,1765076212971,500.0,6.918e-05,2]
[396625891,1765076213015,500.0,6.918e-05,2]
[396625892,1765076213078,500.0,6.918e-05,2]
[396625893,1765076213134,500.0,6.918e-05,2]
[396625894,1765076213168,500.0,6.918e-05,2]
[396625895,1765076213233,500.0,6.918e-05,2]
[396625896,1765076213308,500.0,6.918e-05,2]
[396625897,1765076213695,500.0,6.918e-05,2]
[396625898,1765076213754,500.0,6.918e-05,2]
[396625899,1765076213814,500.0,6.918e-05,2]
[396625900,1765076213854,500.0,6.918e-05,2]
[396625901,1765076213908,456.80202459,6.918e-05,2]
[396625902,1765076213984,431.48622489,6.918e-05,2]
[396625903,1765076214029,500.0,6.918e-05,2]
[396625904,1765076214080,500.0,6.918e-05,2]
[396625905,1765076214139,500.0,6.918e-05,2]
[396625906,1765076214193,500.0,6.918e-05,2]
[396625907,1765076214228,500.0,6.918e-05,2]
[396625908,1765076214293,26.78028655,6.918e-05,2]
[396625909,1765076214315,473.21971345,6.918e-05,2]
[396625910,1765076214348,500.0,6.918e-05,2]
[396625911,1765076214482,500.0,6.918e-05,2]
[396625912,1765076214582,500.0,6.918e-05,2]
[396625913,1765076214633,500.0,6.918e-05,2]
[396625914,1765076214701,500.0,6.918e-05,2]
[396625915,1765076214762,500.0,6.918e-05,2]
[396625916,1765076214833,500.0,6.918e-05,2]
[396625917,1765076214879,500.0,6.918e-05,2]
[396625918,1765076214938,500.0,6.918e-05,2]
[396625919,1765076214974,500.0,6.918e-05,2]
[396625920,1765076215057,500.0,6.918e-05,2]
[396625921,1765076215140,500.0,6.918e-05,2]
[396625922,1765076215217,500.0,6.918e-05,2]
[396625923,1765076215261,500.0,6.918e-05,2]
[396625924,1765076215326,500.0,6.918e-05,2]
[396625925,1765076215417,500.0,6.918e-05,2]
[396625926,1765076222931,500.0,6.918e-05,2]
[396625927,1765076223207,500.0,6.918e-05,2]
[396625928,1765076223242,500.0,6.918e-05,2]
[396625929,1765076223638,26.79028655,6.918e-05,2]
[396625930,1765076223664,473.20971345,6.918e-05,2]
[396625931,1765076223715,500.0,6.918e-05,2]
[396625932,1765076223753,256.59971892,6.918e-05,2]
[396625933,1765076233923,500.0,6.918e-05,2]
[396625934,1765076233982,500.0,6.918e-05,2]
[396625935,1765076234052,500.0,6.918e-05,2]
[396625936,1765076234092,500.0,6.918e-05,2]
[396625937,1765076234239,500.0,6.918e-05,2]
[396625938,1765076234367,500.0,6.918e-05,2]
[396625939,1765076234408,500.0,6.918e-05,2]
[396625940,1765076234582,500.0,6.918e-05,2]
[396625941,1765076235224,500.0,6.918e-05,2]
[396625942,1765076251720,500.0,6.918e-05,2]
[396625943,1765076251884,550.07741339,6.918e-05,2]
[396625944,1765076251929,500.0,6.918e-05,2]
[396625945,1765076252137,500.0,6.918e-05,2]
[396625946,1765076262025,500.0,6.918e-05,2]
[396625947,1765076262199,428.52185656,6.918e-05,2]
[396625948,1765076262235,500.0,6.918e-05,2]
[396625949,1765076278174,551.5203151,6.918e-05,2]
[396625950,1765076278282,551.5203151,6.918e-05,2]
[396625951,1765076279143,477.0,6.918e-05,2]
[396625952,1765076282754,5000.0,0.000203,120]
[396625953,1765076300056,344.78939992,6.918e-05,2]
[396625954,1765076401326,96.58069993,6.918e-05,2]
[396625955,1765076401351,203.41930007,6.918e-05,2]
[396625956,1765076402919,300.0,6.918e-05,2]
[396625957,1765076406875,300.0,6.918e-05,2]
[396625958,1765076408440,1200.0,6.918e-05,2]
[396625959,1765076505791,160.264,6.781e-05,2]
[396625987,1765077032374,-303.41490542,6.919e-05,2]
[396626047,1765077038894,-1109.48837482,6.919e-05,2]
[396626048,1765077038921,-98770.96097217,6.919e-05,2]
[396626760,1765077105802,160.26454799,6.781e-05,2]
[396626761,1765077135036,7676.06215194,6.819e-05,2]
[396626762,1765077135063,10000.01,6.819e-05,2]
[396626763,1765077135089,10000.01,6.819e-05,2]
[396626764,1765077135381,10000.01,6.819e-05,2]
[396626765,1765077135411,10000.01,6.819e-05,2]
[396626766,1765077135442,10000.01,6.819e-05,2]
[396626767,1765077135468,10000.01,6.819e-05,2]
[396626768,1765077135492,10000.01,6.819e-05,2]
[396626769,1765077135517,10000.01,6.819e-05,2]
[396626770,1765077135542,10000.01,6.819e-05,2]
[396626771,1765077149957,-377.64704023,6.819e-05,2]
[396626772,1765077156045,-151.33,6.819e-05,2]
[396626773,1765077158160,-379.53922803,6.819e-05,2]
[396626774,1765077161395,-220.46077197,6.819e-05,2]
[396626775,1765077162897,-291.89649264,6.819e-05,2]
[396626776,1765077168390,-450.54722123,6.819e-05,2]
[396626777,1765077170586,-196.80918333,6.819e-05,2]
[396626778,1765077172766,-265.06333982,6.819e-05,2]
[396626779,1765077174459,-287.86783038,6.819e-05,2]
[396626780,1765077174953,150.0,6.65e-05,2]
[396626781,1765077175792,-162.90995115,6.819e-05,2]
[396626782,1765077179426,1094.0,6.818e-05,2]
[396626783,1765077179495,-187.93737386,6.819e-05,2]
[396626784,1765077180965,-194.37963218,6.819e-05,2]
[396626785,1765077182508,300.0,6.818e-05,2]
[396626786,1765077183607,-234.93666018,6.819e-05,2]
[396626787,1765077185120,-309.63688295,6.819e-05,2]
[396626788,1765077187910,-305.55076006,6.819e-05,2]
[396626789,1765077189929,-337.27672743,6.819e-05,2]
[396626790,1765077191418,-260.83183474,6.819e-05,2]
[396626791,1765077196460,-180.18003834,6.819e-05,2]
[396626792,1765077196769,504.73718385,6.818e-05,2]
[396626793,1765077196799,500.0,6.818e-05,2]
[396626794,1765077196831,500.0,6.818e-05,2]
[396626795,1765077196861,500.0,6.818e-05,2]
[396626796,1765077196906,500.0,6.818e-05,2]
[396626797,1765077196942,500.0,6.818e-05,2]
[396626798,1765077196991,496.9987632,6.818e-05,2]
[396626799,1765077197023,500.0,6.818e-05,2]
[396626800,1765077197052,500.0,6.818e-05,2]
[396626801,1765077197101,500.0,6.818e-05,2]
[396626802,1765077197131,500.0,6.818e-05,2]
[396626803,1765077197184,500.0,6.818e-05,2]
[396626804,1765077197219,500.0,6.818e-05,2]
[396626805,1765077197273,348.63577654,6.818e-05,2]
[396626806,1765077197321,500.0,6.818e-05,2]
[396626807,1765077197364,500.0,6.818e-05,2]
[396626808,1765077197400,500.0,6.818e-05,2]
[396626809,1765077197437,105.63827641,6.818e-05,2]
[396626810,1765077197459,394.36172359,6.818e-05,2]
[396626811,1765077197502,500.0,6.818e-05,2]
[396626812,1765077197558,500.0,6.818e-05,2]
[396626813,1765077197631,500.0,6.818e-05,2]
[396626814,1765077197676,500.0,6.818e-05,2]
[396626815,1765077197712,500.0,6.818e-05,2]
[396626816,1765077197784,500.0,6.818e-05,2]
[396626817,1765077197815,500.0,6.818e-05,2]
[396626818,1765077197871,500.0,6.818e-05,2]
[396626819,1765077197908,500.0,6.818e-05,2]
[396626820,1765077197995,500.0,6.818e-05,2]
[396626821,1765077198076,221.78845979,6.818e-05,2]
[396626822,1765077198154,500.0,6.818e-05,2]
[396626823,1765077198194,500.0,6.818e-05,2]
[396626824,1765077198252,500.0,6.818e-05,2]
[396626825,1765077198338,500.0,6.818e-05,2]
[396626826,1765077198417,500.0,6.818e-05,2]
[396626827,1765077198526,500.0,6.818e-05,2]
[396626828,1765077198587,500.0,6.818e-05,2]
[396626829,1765077198736,-188.49682959,6.819e-05,2]
[396626830,1765077201154,-417.40216267,6.819e-05,2]
[396626831,1765077203565,-185.07562662,6.819e-05,2]
[396626832,1765077207361,-249.4444737,6.819e-05,2]
[396626833,1765077210399,-247.16595522,6.819e-05,2]
[396626834,1765077211957,-176.45544528,6.819e-05,2]
[396626835,1765077215281,-378.49379308,6.819e-05,2]
[396626836,1765077219831,-198.07032052,6.819e-05,2]
[396626837,1765077221876,-154.09575476,6.819e-05,2]
[396626838,1765077224033,-384.40162183,6.819e-05,2]
[396626839,1765077227384,-311.87263561,6.819e-05,2]
[396626840,1765077228853,-157.24285756,6.819e-05,2]
[396626841,1765077230437,-194.61801414,6.819e-05,2]
[396626842,1765077232035,-220.61788613,6.819e-05,2]
[396626843,1765077234076,-152.72,6.819e-05,2]
[396626844,1765077236237,-300.0,6.819e-05,2]
[396626845,1765077239004,-233.54778565,6.819e-05,2]
[396626846,1765077242234,-179.64573251,6.819e-05,2]
[396626847,1765077242318,300.0,6.818e-05,2]
[396626848,1765077243818,-269.65409042,6.819e-05,2]
[396626849,1765077248247,-334.11197771,6.819e-05,2]
[396626850,1765077250279,-160.26,6.819e-05,2]
[396626851,1765077253145,-300.35265755,6.819e-05,2]
[396626852,1765077255114,174.09,6.616e-05,2]
[396626853,1765077259281,-166.21285512,6.819e-05,2]
[396626854,1765077264484,-272.06837216,6.819e-05,2]
[396626855,1765077271851,-385.65207547,6.819e-05,2]
[396626856,1765077276131,-192.83436738,6.819e-05,2]
[396626857,1765077277574,-394.04902969,6.819e-05,2]
[396626858,1765077279614,-333.96973815,6.819e-05,2]
[396626859,1765077281029,-202.34422436,6.819e-05,2]
[396626860,1765077284244,-261.05428655,6.819e-05,2]
[396626861,1765077286305,-268.9579893,6.819e-05,2]
[396626862,1765077291434,-297.89246289,6.819e-05,2]
[396626863,1765077294713,-476.56959832,6.819e-05,2]
[396626864,1765077297511,-474.05053641,6.819e-05,2]
[396626865,1765077299190,-189.03337398,6.819e-05,2]
[396626866,1765077300561,-286.62579853,6.819e-05,2]
[396626867,1765077301295,300.0,6.818e-05,2]
[396626868,1765077302064,109.76981662,6.818e-05,2]
[396626869,1765077302086,190.23018338,6.818e-05,2]
[396626870,1765077302123,300.0,6.818e-05,2]
[396626871,1765077302171,-483.41840718,6.819e-05,2]
[396626872,1765077302861,300.0,6.818e-05,2]
[396626873,1765077307925,300.0,6.818e-05,2]
[396626874,1765077308164,-312.26497147,6.819e-05,2]
[396626875,1765077308280,1200.0,6.818e-05,2]
[396626876,1765077310982,-155.76528857,6.819e-05,2]
[396626877,1765077313129,-272.52929848,6.819e-05,2]
[396626878,1765077315372,-151.21737776,6.819e-05,2]
[396626879,1765077317191,-298.61865185,6.819e-05,2]
[396626880,1765077321623,-158.24064033,6.819e-05,2]
[396626881,1765077323028,-249.37986527,6.819e-05,2]
[396626882,1765077323979,500.0,6.818e-05,2]
[396626883,1765077324095,500.0,6.818e-05,2]
[396626884,1765077325206,-613.39432335,6.819e-05,2]
[396626885,1765077327150,539.01228218,6.818e-05,2]
[396626886,1765077328592,-161.57926918,6.819e-05,2]
[396626887,1765077331614,-214.86638172,6.819e-05,2]
[396626888,1765077333093,-279.72248607,6.819e-05,2]
[396626889,1765077334121,1029.31185504,6.818e-05,2]
[396626890,1765077334155,1029.31185504,6.818e-05,2]
[396626891,1765077334204,1029.31185504,6.818e-05,2]
[396626892,1765077334252,1029.31185504,6.818e-05,2]
[396626893,1765077334290,1029.31185504,6.818e-05,2]
[396626894,1765077334324,1024.20825924,6.818e-05,2]
[396626895,1765077334348,5.1035958,6.818e-05,2]
[396626896,1765077334395,1029.31185504,6.818e-05,2]
[396626897,1765077334434,1029.31185504,6.818e-05,2]
[396626898,1765077334521,1029.31185504,6.818e-05,2]
[396626899,1765077334887,1029.31185504,6.818e-05,2]
[396626900,1765077335021,1029.31185504,6.818e-05,2]
[396626901,1765077335166,1029.31185504,6.818e-05,2]
[396626902,1765077335229,1029.31185504,6.818e-05,2]
[396626903,1765077335362,1029.31185504,6.818e-05,2]
[396626904,1765077336377,-152.46583277,6.819e-05,2]
[396626905,1765077336631,171.88,6.609e-05,2]
[396626906,1765077338597,-382.31628849,6.819e-05,2]
[396626907,1765077340618,-424.663942,6.819e-05,2]
[396626908,1765077342152,-292.39362416,6.819e-05,2]
[396626909,1765077346013,810.58308584,6.818e-05,2]
[396626910,1765077346053,777.94847804,6.818e-05,2]
[396626911,1765077346078,32.6346078,6.818e-05,2]
[396626912,1765077346124,810.58308584,6.818e-05,2]
[396626913,1765077346180,810.58308584,6.818e-05,2]
[396626914,1765077346260,810.58308584,6.818e-05,2]
[396626915,1765077346328,810.58308584,6.818e-05,2]
[396626916,1765077346371,810.58308584,6.818e-05,2]
[396626917,1765077346415,810.58308584,6.818e-05,2]
[396626918,1765077346498,810.58308584,6.818e-05,2]
[396626919,1765077346681,810.58308584,6.818e-05,2]
[396626920,1765077346755,810.58308584,6.818e-05,2]
[396626921,1765077346787,810.58308584,6.818e-05,2]
[396626922,1765077346876,810.58308584,6.818e-05,2]
[396626923,1765077362224,300.0,6.818e-05,2]
[396626924,1765077372819,500.0,6.818e-05,2]
[396626925,1765077372930,226.12068162,6.818e-05,2]
[396626926,1765077372988,24.84076634,6.818e-05,2]
[396626927,1765077373013,475.15923366,6.818e-05,2]
[396626928,1765077373134,500.0,6.818e-05,2]
[396626929,1765077373207,500.0,6.818e-05,2]
[396626930,1765077373579,500.0,6.818e-05,2]
[396626931,1765077373771,500.0,6.818e-05,2]
[396626932,1765077387630,194.22822651,6.818e-05,2]
[396626933,1765077416672,169.69,6.612e-05,2]
[396626934,1765077422664,300.0,6.818e-05,2]
[396626935,1765077482251,300.0,6.818e-05,2]
[396626936,1765077496600,167.53,6.619e-05,2]
[396626937,1765077523968,273.93859657,6.818e-05,2]
[396626938,1765077525308,500.0,6.818e-05,2]
[396626939,1765077542773,236.0,6.818e-05,2]
[396626940,1765077576313,165.4,6.618e-05,2]
[396626941,1765077601320,300.0,6.818e-05,2]
[396626942,1765077607663,300.0,6.818e-05,2]
[396626943,1765077608495,1200.0,6.818e-05,2]
[396626944,1765077655471,163.29,6.617e-05,2]
[396626945,1765077705806,223.608,6.683e-05,2]
[396626946,1765077722236,300.0,6.818e-05,2]
[396626947,1765077734792,161.21,6.619e-05,2]
[396626948,1765077782640,300.0,6.818e-05,2]
[396626956,1765077813191,159.16,6.618e-05,2]
[396626957,1765077833489,204.7973783,6.038e-05,2]
[396626958,1765077842369,300.0,6.818e-05,2]
[396626959,1765077893234,157.14,6.617e-05,2]
[396626961,1765077909269,1200.0,6.818e-05,2]
[396626962,1765077973291,155.14,6.615e-05,2]
[396626965,1765078052246,93.71856496,6.631e-05,2]
[396626966,1765078052271,59.44143504,6.631e-05,2]
[396626973,1765078130905,151.21,6.616e-05,2]
[396626974,1765078153803,9789.35856496,6.719e-05,2]
[396626975,1765078153829,10000.01,6.719e-05,2]
[396626976,1765078153854,10000.01,6.719e-05,2]
[396626977,1765078153878,10000.01,6.719e-05,2]
[396626978,1765078153902,10000.01,6.719e-05,2]
[396626979,1765078153926,10000.01,6.719e-05,2]
[396626980,1765078153950,10000.01,6.719e-05,2]
[396626981,1765078153974,10000.01,6.719e-05,2]
[396626982,1765078153998,10000.01,6.719e-05,2]
[396626983,1765078165527,-230.90000003,6.719e-05,2]
[396626984,1765078173282,-201.71712585,6.719e-05,2]
[396626985,1765078174823,-318.20252885,6.719e-05,2]
[396626986,1765078180002,-159.33000003,6.719e-05,2]
[396626987,1765078182096,-275.49112525,6.719e-05,2]
[396626988,1765078189980,-436.7581544,6.719e-05,2]
[396626989,1765078198072,-202.67194739,6.719e-05,2]
[396626990,1765078202833,300.0,6.718e-05,2]
[396626991,1765078204139,-270.95703868,6.719e-05,2]
[396626992,1765078206178,-217.65729365,6.719e-05,2]
[396626993,1765078208876,841.0,6.718e-05,2]
[396626994,1765078210407,150.0,6.615e-05,2]
[396626995,1765078212058,-304.88343121,6.719e-05,2]
[396626996,1765078221175,-238.37,6.719e-05,2]
[396626997,1765078223877,-193.16,6.719e-05,2]
[396626998,1765078225397,-151.05,6.719e-05,2]
[396626999,1765078228619,-152.1958078,6.719e-05,2]
[396627037,1765078232287,504.2419524,6.718e-05,2]
[396627038,1765078232348,-525.06757274,6.719e-05,2]
[396627039,1765078232360,-356.90616913,6.719e-05,2]
[396627040,1765078232396,-1012.52984065,6.719e-05,2]
[396627041,1765078232411,-17771.00444251,6.719e-05,2]
[396627042,1765078232703,500.0,6.718e-05,2]
[396627043,1765078232755,500.0,6.718e-05,2]
[396627044,1765078232809,500.0,6.718e-05,2]
[396627045,1765078232881,337.42602582,6.718e-05,2]
[396627046,1765078233051,500.0,6.718e-05,2]
[396627047,1765078233518,500.0,6.718e-05,2]
[396627048,1765078233768,500.0,6.718e-05,2]
[396627049,1765078233945,500.0,6.718e-05,2]
[396627050,1765078234394,500.0,6.718e-05,2]
[396627051,1765078234548,500.0,6.718e-05,2]
[396627052,1765078234651,500.0,6.718e-05,2]
[396627053,1765078234799,500.0,6.718e-05,2]
[396627054,1765078234964,500.0,6.718e-05,2]
[396627055,1765078235055,500.0,6.718e-05,2]
[396627056,1765078237013,-151.05,6.719e-05,2]
[396627057,1765078237071,500.0,6.718e-05,2]
[396627058,1765078237128,171.00136469,6.718e-05,2]
[396627063,1765078237746,-677.42648617,6.719e-05,2]
[396627064,1765078237799,-1340.016455,6.719e-05,2]
[396627065,1765078238646,-187.9929911,6.719e-05,2]
[396627191,1765078240679,-3e-08,6.719e-05,2]
[396627222,1765078240952,502.67737913,6.718e-05,2]
[396627229,1765078241012,193.66327796,6.718e-05,2]
[396627233,1765078241036,306.33672204,6.718e-05,2]
[396627237,1765078241065,218.90570405,6.718e-05,2]
[396627241,1765078241094,539.47504819,6.718e-05,2]
[396627246,1765078241130,-219.65134449,6.719e-05,2]
[396627885,1765078247563,-280.90558486,6.719e-05,2]
[396628211,1765078250712,-307.77370017,6.719e-05,2]